fUST/lending_fUST_20250110
["ID","MTS","AMOUNT","RATE_DAILY","PERIOD"]
[348337731,1736453232314,-500.0,0.0002021,3]
[348337732,1736453232338,-500.0,0.0002021,3]
[348337733,1736453232359,-788.42448663,0.00020264,2]
[348337734,1736453242119,-307.62820861,0.00020264,2]
[348337735,1736453242211,-1181.77938419,0.00020264,2]
[348337736,1736453252103,-707.83514969,0.00020264,2]
[348337811,1736453436445,-150.0,0.000189,2]
[348337813,1736453436455,-170.6858273,0.00019514,2]
[348337815,1736453436464,-165.29434074,0.0002017,2]
[348337817,1736453436476,-500.0,0.00020264,3]
[348337819,1736453436485,-500.0,0.00020264,3]
[348337821,1736453436495,-1638.0,0.00020264,2]
[348337823,1736453436505,-500.0,0.00020264,3]
[348337825,1736453436514,-500.0,0.00020264,3]
[348337827,1736453436523,-223.54294456,0.00020265,3]
[348337829,1736453436533,-509.93732249,0.00020265,3]
[348337831,1736453436543,-500.0,0.00020265,3]
[348337833,1736453436551,-500.0,0.00020265,3]
[348337835,1736453436561,-500.0,0.00020265,3]
[348337837,1736453436570,-500.0,0.00020265,3]
[348337839,1736453436579,-500.0,0.00020265,3]
[348337841,1736453436589,-500.0,0.00020265,3]
[348337843,1736453436599,-500.0,0.00020265,3]
[348337845,1736453436609,-500.0,0.00020265,3]
[348337847,1736453436621,-421.52412678,0.00020265,3]
[348337849,1736453436632,-67.31300854,0.00020265,3]
[348337851,1736453436642,-500.0,0.00020265,3]
[348337853,1736453436651,-95.51980245,0.00020265,3]
[348337856,1736453436662,-404.48019755,0.00020265,3]
[348337858,1736453436672,-256.95411532,0.00020265,3]
[348337860,1736453436683,-340.65846001,0.00020265,3]
[348337862,1736453436693,-500.0,0.00020265,3]
[348337864,1736453436702,-500.0,0.00020265,3]
[348337866,1736453436711,-500.0,0.00020265,3]
[348337868,1736453436721,-500.0,0.00020265,3]
[348337870,1736453436730,-500.0,0.00020265,3]
[348337872,1736453436739,-608.10065513,0.00020265,3]
[348337874,1736453436748,-500.0,0.00020265,3]
[348337876,1736453436757,-500.0,0.00020265,2]
[348337878,1736453436769,-206.21407199,0.00020265,3]
[348337880,1736453436786,-293.78592801,0.00020265,3]
[348337882,1736453436795,-500.0,0.00020265,3]
[348337884,1736453436805,-500.0,0.00020265,3]
[348337886,1736453436814,-151.70407199,0.00020265,3]
[348338035,1736453438444,-348.29592801,0.00020265,3]
[348338037,1736453438454,-500.0,0.00020265,3]
[348338039,1736453438463,-500.0,0.00020265,3]
[348338041,1736453438473,-253.75710513,0.00020265,3]
[348338050,1736453438550,-246.24289487,0.00020265,3]
[348338052,1736453438560,-781.25,0.00020265,3]
[348338054,1736453438570,-500.0,0.00020265,3]
[348338056,1736453438579,-500.0,0.00020265,3]
[348338058,1736453438589,-500.0,0.00020265,3]
[348338060,1736453438599,-500.0,0.00020265,3]
[348338062,1736453438608,-500.0,0.00020265,3]
[348338064,1736453438617,-500.0,0.00020265,3]
[348338066,1736453438634,-3544.87,0.00020265,3]
[348338068,1736453438644,-588.22422484,0.00020265,3]
[348338070,1736453438653,-500.0,0.00020265,3]
[348338072,1736453438663,-184.54483202,0.00020265,3]
[348338074,1736453438672,-500.0,0.00020265,3]
[348338076,1736453438682,-500.0,0.00020265,3]
[348338078,1736453438691,-500.0,0.00020265,3]
[348338080,1736453438700,-573.51,0.00020265,3]
[348338082,1736453438710,-500.0,0.00020265,3]
[348338084,1736453438719,-500.0,0.00020265,3]
[348338086,1736453438728,-500.0,0.00020265,3]
[348338088,1736453438738,-500.0,0.00020266,3]
[348338090,1736453438747,-500.0,0.00020266,3]
[348338092,1736453438756,-500.0,0.00020266,3]
[348338094,1736453438765,-597.61,0.00020266,3]
[348338096,1736453438775,-586.11,0.00020268,3]
[348338098,1736453438784,-500.0,0.00020269,2]
[348338100,1736453438793,-639.40855505,0.00020269,2]
[348338102,1736453438804,-500.0,0.0002027,3]
[348338104,1736453438813,-500.0,0.0002027,3]
[348338106,1736453438823,-500.0,0.0002027,3]
[348338108,1736453438832,-500.0,0.0002027,3]
[348338110,1736453438842,-500.0,0.0002027,3]
[348338112,1736453438851,-211.7731469,0.0002027,3]
[348338114,1736453438863,-288.2268531,0.0002027,3]
[348338117,1736453438879,-500.0,0.0002027,3]
[348338118,1736453438888,-500.0,0.0002027,3]
[348338120,1736453438897,-500.0,0.0002027,3]
[348338122,1736453438906,-500.0,0.0002027,3]
[348338124,1736453438915,-500.0,0.0002027,3]
[348338126,1736453438924,-500.0,0.0002027,3]
[348338128,1736453438934,-500.0,0.0002027,3]
[348338131,1736453438945,-500.0,0.0002027,3]
[348338133,1736453438954,-500.0,0.0002027,3]
[348338135,1736453438964,-500.0,0.00020538,3]
[348338137,1736453438973,-385.33,0.00020538,3]
[348338139,1736453438982,-500.0,0.00020539,3]
[348338141,1736453438992,-171.224,0.00020539,2]
[348338142,1736453439005,-500.0,0.00020539,3]
[348338144,1736453439015,-500.0,0.00020539,2]
[348338146,1736453439024,-534.44,0.00020539,3]
[348338148,1736453439034,-500.0,0.00020539,3]
[348338150,1736453439046,-570.69,0.00020539,3]
[348338152,1736453439056,-501.52501386,0.00020539,3]
[348338155,1736453439068,-279.72498614,0.00020539,3]
[348338157,1736453439079,-500.0,0.00020539,3]
[348338159,1736453439090,-326.0,0.00020539,3]
[348338161,1736453439099,-177.99,0.00020539,3]
[348338163,1736453439110,-3544.87,0.00020539,3]
[348338165,1736453439124,-500.0,0.00020539,3]
[348338167,1736453439135,-500.0,0.00020539,3]
[348338169,1736453439144,-500.0,0.00020539,3]
[348338171,1736453439154,-521.54919414,0.00020539,3]
[348338173,1736453439163,-586.11,0.00020542,3]
[348338175,1736453439173,-500.0,0.00020544,3]
[348338176,1736453439183,-500.0,0.00020544,3]
[348338178,1736453439192,-500.0,0.00020544,3]
[348338181,1736453439203,-500.0,0.00020544,3]
[348338183,1736453439212,-500.0,0.00020544,3]
[348338185,1736453439221,-248.22658657,0.00020544,3]
[348338187,1736453439230,-500.0,0.00020544,3]
[348338189,1736453439240,-500.0,0.00020544,3]
[348338191,1736453439250,-206.48145436,0.00020657,2]
[348338192,1736453439259,-703.45403865,0.00020794,2]
[348338340,1736453440712,-1088.54596135,0.00020794,2]
[348338342,1736453440722,-398.29672969,0.00020812,3]
[348338347,1736453440765,-101.70327031,0.00020812,3]
[348338349,1736453440774,-366.51,0.00020813,3]
[348338351,1736453440784,-500.0,0.00020813,2]
[348338353,1736453440794,-500.0,0.00020813,3]
[348338355,1736453440803,-781.25,0.00020813,3]
[348338357,1736453440812,-553.94,0.00020813,3]
[348338359,1736453440822,-3544.87,0.00020813,3]
[348338361,1736453440831,-538.9,0.00020813,3]
[348338363,1736453440841,-500.0,0.00020813,3]
[348338365,1736453440850,-586.11,0.00020816,3]
[348338367,1736453440859,-500.0,0.00020818,3]
[348338369,1736453440868,-325.32,0.00020818,3]
[348338371,1736453440880,-429.89005962,0.00020818,3]
[348338373,1736453440891,-70.10994038,0.00020818,3]
[348338375,1736453440900,-165.29434074,0.00020936,2]
[348338377,1736453440910,-535.2,0.00021086,3]
[348338379,1736453440919,-500.0,0.00021087,2]
[348338381,1736453440929,-500.0,0.00021087,3]
[348338383,1736453440938,-781.25,0.00021087,3]
[348338385,1736453440947,-3544.87,0.00021087,3]
[348338387,1736453440956,-500.0,0.00021087,3]
[348338389,1736453440965,-586.11,0.0002109,3]
[348338391,1736453440975,-500.0,0.00021092,3]
[348338393,1736453440984,-500.0,0.00021092,3]
[348338395,1736453440993,-150.0,0.000213,2]
[348338397,1736453441006,-500.0,0.00021361,2]
[348338399,1736453441015,-500.0,0.00021361,3]
[348338401,1736453441024,-781.25,0.00021361,3]
[348338403,1736453441034,-3544.87,0.00021361,3]
[348338405,1736453441044,-500.0,0.00021361,3]
[348338407,1736453441054,-586.11,0.00021364,3]
[348338409,1736453441063,-500.0,0.00021366,3]
[348338411,1736453441072,-500.0,0.00021366,3]
[348338413,1736453441082,-500.0,0.00021635,2]
[348338415,1736453441092,-500.0,0.00021635,3]
[348338417,1736453441101,-781.25,0.00021635,3]
[348338419,1736453441110,-3544.87,0.00021635,3]
[348338421,1736453441122,-491.52,0.00021635,3]
[348338423,1736453441131,-586.11,0.00021638,3]
[348338425,1736453441140,-500.0,0.0002164,3]
[348338427,1736453441150,-500.0,0.0002164,3]
[348338429,1736453441159,-165.29434074,0.00021701,2]
[348338431,1736453441168,-500.0,0.00021909,2]
[348338433,1736453441178,-500.0,0.00021909,3]
[348338435,1736453441187,-781.25,0.00021909,3]
[348338437,1736453441196,-3544.87,0.00021909,3]
[348338439,1736453441205,-586.11,0.00021912,3]
[348338441,1736453441215,-500.0,0.00021914,3]
[348338443,1736453441224,-500.0,0.00021914,3]
[348338445,1736453441233,-206.48145436,0.00021918,2]
[348338446,1736453441243,-636.898,0.0002216,2]
[348338449,1736453441252,-500.0,0.00022183,3]
[348338451,1736453441262,-500.0,0.00022183,2]
[348338453,1736453441271,-500.0,0.00022183,3]
[348338455,1736453441281,-500.0,0.00022183,3]
[348338457,1736453441290,-781.25,0.00022183,3]
[348338459,1736453441299,-3544.87,0.00022183,3]
[348338461,1736453441309,-500.0,0.00022183,3]
[348338463,1736453441318,-586.11,0.00022186,3]
[348338465,1736453441327,-500.0,0.00022188,3]
[348338467,1736453441337,-500.0,0.00022188,3]
[348338469,1736453441346,-500.0,0.00022457,2]
[348338471,1736453441356,-500.0,0.00022457,3]
[348338473,1736453441365,-781.25,0.00022457,3]
[348338474,1736453441378,-3544.87,0.00022457,3]
[348338476,1736453441387,-500.0,0.00022457,3]
[348338478,1736453441396,-825.9056342,0.00022457,4]
[348338486,1736453441462,-966.0943658,0.00022457,4]
[348338488,1736453441471,-586.11,0.0002246,3]
[348338490,1736453441481,-500.0,0.00022462,3]
[348338492,1736453441490,-500.0,0.00022462,3]
[348338494,1736453441500,-165.29434074,0.00022467,2]
[348338496,1736453441509,-394.0,0.00022667,2]
[348338498,1736453441519,-2500.0,0.00022676,3]
[348338500,1736453441528,-182.58181231,0.0002273,2]
[348338502,1736453441538,-500.0,0.00022731,2]
[348338504,1736453441547,-500.0,0.00022731,3]
[348338506,1736453441556,-781.25,0.00022731,3]
[348338508,1736453441566,-3544.87,0.00022731,3]
[348338510,1736453441575,-500.0,0.00022731,3]
[348338512,1736453441585,-586.11,0.00022734,3]
[348338514,1736453441595,-500.0,0.00022736,3]
[348338516,1736453441604,-500.0,0.00022736,3]
[348338526,1736453441696,-166.372971,0.00022759,2]
[348338528,1736453441706,-150.0,0.00022967,2]
[348338530,1736453441715,-535.925,0.00022967,2]
[348338532,1736453441725,-2076.0,0.00022967,2]
[348338534,1736453441734,-2331.193,0.00022967,2]
[348338536,1736453441743,-19343.94931975,0.00023,30]
[348338710,1736453443502,-370.36,0.00023,30]
[348338712,1736453443514,-16599.99999967,0.00023,30]
[348338715,1736453443527,-537.49999945,0.00023,30]
[348338717,1736453443538,-22281.94793177,0.00023,30]
[348338719,1736453443548,-500.0,0.00023005,2]
[348338721,1736453443558,-500.0,0.00023005,3]
[348338723,1736453443567,-781.25,0.00023005,3]
[348338725,1736453443576,-3544.87,0.00023005,3]
[348338727,1736453443586,-500.0,0.00023005,3]
[348338729,1736453443595,-586.11,0.00023008,3]
[348338731,1736453443605,-500.0,0.0002301,3]
[348338733,1736453443614,-381.3,0.0002301,3]
[348338736,1736453443624,-206.48145436,0.00023179,2]
[348338737,1736453443634,-151.0,0.000232,7]
[348338739,1736453443643,-165.29434074,0.00023232,2]
[348338741,1736453443652,-32669.45228244,0.00023232,3]
[348338743,1736453443662,-921.6329067,0.00023232,7]
[348338745,1736453443671,-921.6329067,0.00023232,7]
[348338747,1736453443680,-921.6329067,0.00023232,7]
[348338750,1736453443690,-921.6329067,0.00023232,7]
[348338752,1736453443701,-921.6329067,0.00023232,7]
[348338753,1736453443710,-921.6329067,0.00023232,7]
[348338755,1736453443719,-921.6329067,0.00023232,7]
[348338757,1736453443729,-921.6329067,0.00023232,7]
[348338759,1736453443738,-921.6329067,0.00023232,7]
[348338761,1736453443747,-921.6329067,0.00023232,7]
[348338763,1736453443757,-921.6329067,0.00023232,7]
[348338765,1736453443766,-921.6329067,0.00023232,7]
[348338767,1736453443775,-921.6329067,0.00023232,7]
[348338769,1736453443784,-921.6329067,0.00023232,7]
[348338771,1736453443793,-921.6329067,0.00023232,7]
[348338773,1736453443803,-921.6329067,0.00023232,7]
[348338776,1736453443814,-921.6329067,0.00023232,7]
[348338777,1736453443823,-921.6329067,0.00023232,7]
[348338779,1736453443833,-921.6329067,0.00023232,7]
[348338781,1736453443842,-921.63,0.00023232,7]
[348338783,1736453443852,-1382.44936005,0.00023232,7]
[348338785,1736453443861,-1382.44936005,0.00023232,7]
[348338788,1736453443871,-1382.44936005,0.00023232,7]
[348338789,1736453443880,-1382.44936005,0.00023232,7]
[348338791,1736453443889,-1382.44936005,0.00023232,7]
[348338793,1736453443898,-1382.44936005,0.00023232,7]
[348338795,1736453443907,-1382.44936005,0.00023232,7]
[348338797,1736453443916,-1382.44936005,0.00023232,7]
[348338799,1736453443925,-1382.44936005,0.00023232,7]
[348338801,1736453443935,-1382.44936005,0.00023232,7]
[348338803,1736453443944,-1382.44936005,0.00023232,7]
[348338805,1736453443953,-488.49198389,0.00023232,7]
[348338808,1736453443966,-893.95737616,0.00023232,7]
[348338810,1736453443975,-1382.44936005,0.00023232,7]
[348338812,1736453443984,-1382.44936005,0.00023232,7]
[348338814,1736453443992,-1382.44936005,0.00023232,7]
[348338816,1736453444003,-1382.44936005,0.00023232,7]
[348338818,1736453444015,-1382.44936005,0.00023232,7]
[348338820,1736453444024,-1382.44936005,0.00023232,7]
[348338822,1736453444034,-1382.44936005,0.00023232,7]
[348338824,1736453444043,-1382.44,0.00023232,7]
[348338826,1736453444053,-153.93836279,0.00023232,7]
[348338828,1736453444062,-153.93836279,0.00023232,7]
[348338830,1736453444071,-153.93836279,0.00023232,7]
[348338832,1736453444081,-153.93836279,0.00023232,7]
[348338834,1736453444090,-153.93836279,0.00023232,7]
[348338836,1736453444099,-153.93836279,0.00023232,7]
[348338838,1736453444108,-153.93836279,0.00023232,7]
[348338840,1736453444118,-153.93836279,0.00023232,7]
[348338842,1736453444128,-153.93836279,0.00023232,7]
[348338844,1736453444137,-153.93836279,0.00023232,7]
[348338846,1736453444146,-153.93836279,0.00023232,7]
[348338848,1736453444155,-153.93836279,0.00023232,7]
[348338850,1736453444164,-153.93836279,0.00023232,7]
[348338852,1736453444173,-153.93836279,0.00023232,7]
[348338853,1736453444183,-153.93836279,0.00023232,7]
[348338855,1736453444192,-153.93836279,0.00023232,7]
[348338857,1736453444201,-153.93836279,0.00023232,7]
[348338859,1736453444212,-153.93836279,0.00023232,7]
[348338861,1736453444221,-153.93,0.00023232,7]
[348338863,1736453444230,-219.36216698,0.00023232,7]
[348338865,1736453444240,-219.36216698,0.00023232,7]
[348338867,1736453444249,-219.36216698,0.00023232,7]
[348338869,1736453444258,-219.36216698,0.00023232,7]
[348338872,1736453444268,-219.36216698,0.00023232,7]
[348338874,1736453444277,-219.36216698,0.00023232,7]
[348338876,1736453444286,-219.36216698,0.00023232,7]
[348338877,1736453444295,-219.36216698,0.00023232,7]
[348338879,1736453444304,-219.36216698,0.00023232,7]
[348338881,1736453444313,-219.36216698,0.00023232,7]
[348338883,1736453444322,-219.36216698,0.00023232,7]
[348338885,1736453444331,-68.07529699,0.00023232,7]
[348338888,1736453444343,-151.28686999,0.00023232,7]
[348338890,1736453444352,-219.36216698,0.00023232,7]
[348338892,1736453444361,-219.36216698,0.00023232,7]
[348338894,1736453444371,-219.36216698,0.00023232,7]
[348338896,1736453444380,-219.36216698,0.00023232,7]
[348338898,1736453444389,-219.36216698,0.00023232,7]
[348338900,1736453444398,-219.36216698,0.00023232,7]
[348338902,1736453444407,-219.36216698,0.00023232,7]
[348338903,1736453444417,-219.36,0.00023232,7]
[348338905,1736453444426,-500.0,0.00023279,2]
[348338907,1736453444435,-500.0,0.00023279,3]
[348338909,1736453444445,-781.25,0.00023279,3]
[348338912,1736453444455,-2732.56796115,0.00023279,3]
[348338914,1736453444466,-812.30203885,0.00023279,3]
[348338916,1736453444475,-500.0,0.00023279,3]
[348338918,1736453444485,-375.19796115,0.00023282,3]
[348339019,1736453446574,-210.91203885,0.00023282,3]
[348339020,1736453446584,-500.0,0.00023284,3]
[348339021,1736453446593,-2000.0,0.000233,2]
[348339022,1736453446603,-933.59,0.000233,2]
[348339023,1736453446612,-2000.0,0.000233,2]
[348339024,1736453446621,-2000.0,0.000233,7]
[348339025,1736453446636,-151.0,0.0002333,7]
[348339026,1736453446645,-151.0,0.0002333,7]
[348339027,1736453446654,-151.0,0.0002333,7]
[348339028,1736453446664,-151.0,0.0002333,7]
[348339029,1736453446674,-151.0,0.0002333,7]
[348339030,1736453446683,-151.0,0.0002333,7]
[348339031,1736453446693,-151.0,0.00023332,7]
[348339032,1736453446702,-151.0,0.00023332,7]
[348339033,1736453446712,-151.0,0.00023332,7]
[348339034,1736453446721,-151.0,0.00023332,7]
[348339035,1736453446731,-256.463636,0.00023332,7]
[348339036,1736453446740,-151.0,0.00023332,7]
[348339037,1736453446749,-151.0,0.00023332,2]
[348339038,1736453446759,-151.0,0.00023332,2]
[348339039,1736453446771,-276.589138,0.00023332,2]
[348339040,1736453446781,-151.0,0.00023332,7]
[348339041,1736453446791,-151.0,0.00023332,7]
[348339042,1736453446800,-277.375996,0.00023332,7]
[348339043,1736453446810,-151.0,0.00023332,7]
[348339044,1736453446820,-151.0,0.00023332,7]
[348339045,1736453446830,-151.0,0.00023332,7]
[348339046,1736453446840,-161.446376,0.00023332,7]
[348339047,1736453446850,-151.0,0.00023332,7]
[348339048,1736453446859,-11178.22330365,0.00023332,5]
[348339049,1736453446868,-4562.91903401,0.00023332,5]
[348339050,1736453446879,-32213.98097053,0.00023332,10]
[348339085,1736453625522,163.058224,0.00013973,2]
[348339092,1736453984447,2549.23322858,0.00025,120]
[348339096,1736454294302,2131.22892266,0.00025,120]
[348339103,1736454431107,-291.706,0.00019264,2]
[348339104,1736454431129,-163.772567,0.0001928,2]
[348339105,1736454431155,-500.0,0.0002021,3]
[348339106,1736454431178,-500.0,0.0002021,3]
[348339107,1736454431200,-500.0,0.0002021,3]
[348339108,1736454431222,-500.0,0.0002021,3]
[348339109,1736454431249,-300.0,0.00020261,2]
[348339110,1736454431273,-346.71301679,0.00020262,2]
[348339111,1736454431355,-613.04633492,0.00020262,2]
[348339114,1736454454218,-174.97319258,0.00020165,2]
[348339115,1736454454245,-896.99370019,0.00020263,2]
[348339120,1736454510565,165.012035,0.00013973,2]
[348339128,1736454604955,2090.0215296,0.00025,120]
[348339209,1736454636680,-174.97319258,0.00020165,2]
[348339211,1736454636690,-196.71,0.00020263,3]
[348339212,1736454636699,-642.08365763,0.00020263,3]
[348339215,1736454636708,-500.0,0.00020263,3]
[348339216,1736454636718,-1833.73585836,0.00020263,2]
[348339223,1736454636787,-35.26414164,0.00020263,2]
[348339225,1736454636796,-300.0,0.00020263,2]
[348339227,1736454636806,-500.0,0.00020263,3]
[348339229,1736454636815,-500.0,0.00020264,3]
[348339231,1736454636824,-500.0,0.00020264,3]
[348339233,1736454636833,-500.0,0.00020264,3]
[348339235,1736454636843,-500.0,0.00020264,3]
[348339256,1736454636963,-500.0,0.00020264,3]
[348339258,1736454636973,-93.09963131,0.00020264,3]
[348339260,1736454636985,-367.536,0.00020264,3]
[348339263,1736454636997,-39.36436869,0.00020264,3]
[348339265,1736454637006,-500.0,0.00020264,3]
[348339267,1736454637016,-500.0,0.00020264,3]
[348339269,1736454637025,-500.0,0.00020264,3]
[348339271,1736454637035,-500.0,0.00020264,3]
[348339273,1736454637044,-500.0,0.00020264,3]
[348339275,1736454637054,-500.0,0.00020264,3]
[348339277,1736454637064,-500.0,0.00020264,3]
[348339279,1736454637074,-500.0,0.00020264,3]
[348339281,1736454637083,-500.0,0.00020264,3]
[348339283,1736454637093,-500.0,0.00020264,3]
[348339285,1736454637102,-500.0,0.00020264,3]
[348339287,1736454637111,-500.0,0.00020264,3]
[348339289,1736454637122,-469.13526086,0.00020264,3]
[348339291,1736454637135,-500.0,0.00020264,3]
[348339293,1736454637145,-500.0,0.00020264,3]
[348339295,1736454637154,-500.0,0.00020264,3]
[348339297,1736454637164,-500.0,0.00020264,3]
[348339299,1736454637173,-648.9468074,0.00020264,3]
[348339301,1736454637183,-500.0,0.00020264,3]
[348339303,1736454637192,-500.0,0.00020264,2]
[348339305,1736454637202,-166.78,0.00020264,3]
[348339307,1736454637212,-500.0,0.00020264,3]
[348339309,1736454637221,-500.0,0.00020264,3]
[348339311,1736454637231,-500.0,0.00020264,3]
[348339313,1736454637240,-500.0,0.00020264,3]
[348339315,1736454637250,-322.8572284,0.00020264,3]
[348339317,1736454637259,-500.0,0.00020264,3]
[348339319,1736454637268,-500.0,0.00020264,3]
[348339321,1736454637277,-1856.87,0.00020264,3]
[348339323,1736454637286,-500.0,0.00020264,3]
[348339325,1736454637296,-500.0,0.00020264,3]
[348339327,1736454637305,-581.81,0.00020264,3]
[348339329,1736454637314,-529.61964726,0.00020264,3]
[348339332,1736454637323,-316.26057444,0.00020264,3]
[348339334,1736454637333,-500.0,0.00020264,3]
[348339335,1736454637342,-500.0,0.00020264,3]
[348339338,1736454637351,-154.18,0.00020264,2]
[348339340,1736454637361,-500.0,0.00020265,3]
[348339341,1736454637371,-500.0,0.00020265,3]
[348339342,1736454637384,-500.0,0.00020265,3]
[348339343,1736454637393,-500.0,0.00020265,3]
[348339344,1736454637402,-500.0,0.00020265,3]
[348339345,1736454637411,-500.0,0.00020265,3]
[348339346,1736454637420,-500.0,0.00020265,3]
[348339347,1736454637429,-500.0,0.00020265,3]
[348339348,1736454637438,-500.0,0.00020265,3]
[348339349,1736454637447,-500.0,0.00020265,3]
[348339350,1736454637457,-500.0,0.00020265,3]
[348339351,1736454637466,-500.0,0.00020265,3]
[348339352,1736454637475,-500.0,0.00020265,3]
[348339353,1736454637484,-500.0,0.00020265,3]
[348339354,1736454637494,-500.0,0.00020265,3]
[348339355,1736454637503,-500.0,0.00020265,3]
[348339356,1736454637512,-235.0,0.00020265,3]
[348339357,1736454637522,-500.0,0.00020265,3]
[348339358,1736454637531,-500.0,0.00020265,3]
[348339359,1736454637540,-500.0,0.00020265,3]
[348339360,1736454637550,-500.0,0.00020265,3]
[348339361,1736454637559,-500.0,0.00020265,3]
[348339362,1736454637569,-500.0,0.00020265,3]
[348339363,1736454637578,-500.0,0.00020265,3]
[348339364,1736454637587,-500.0,0.00020265,3]
[348339365,1736454637597,-569.02,0.00020265,3]
[348339366,1736454637607,-500.0,0.00020265,3]
[348339367,1736454637617,-500.0,0.00020265,3]
[348339369,1736454637626,-500.0,0.00020265,3]
[348339370,1736454637641,-500.0,0.00020265,3]
[348339372,1736454637650,-500.0,0.00020265,3]
[348339374,1736454637660,-500.0,0.00020265,3]
[348339376,1736454637669,-500.0,0.00020265,3]
[348339378,1736454637679,-500.0,0.00020266,3]
[348339380,1736454637690,-169.482,0.00020269,2]
[348339381,1736454637699,-500.0,0.0002027,3]
[348339383,1736454637709,-632.89,0.0002027,3]
[348339384,1736454637719,-500.0,0.00020537,3]
[348339386,1736454637728,-386.24581853,0.00020538,3]
[348339387,1736454637737,-500.0,0.00020538,3]
[348339388,1736454637746,-500.0,0.00020538,3]
[348339389,1736454637755,-500.0,0.00020538,3]
[348339390,1736454637764,-500.0,0.00020538,3]
[348339391,1736454637774,-500.0,0.00020538,3]
[348339392,1736454637783,-500.0,0.00020538,3]
[348339393,1736454637793,-500.0,0.00020538,3]
[348339394,1736454637802,-500.0,0.00020538,3]
[348339395,1736454637811,-500.0,0.00020538,3]
[348339396,1736454637820,-500.0,0.00020538,7]
[348339397,1736454637830,-467.66904166,0.00020538,3]
[348339398,1736454637840,-502.76144511,0.00020538,3]
[348339399,1736454637849,-176.56725558,0.00020538,3]
[348339400,1736454637862,-326.0383915,0.00020538,3]
[348339401,1736454637871,-132.6716085,0.00020538,3]
[348339402,1736454637886,-383.25641117,0.00020538,3]
[348339403,1736454637895,-575.81,0.00020538,3]
[348339404,1736454637905,-287.14,0.00020538,3]
[348339405,1736454637915,-500.0,0.00020538,3]
[348339406,1736454637924,-462.64,0.00020538,3]
[348339407,1736454637934,-500.0,0.00020538,3]
[348339408,1736454637944,-500.0,0.00020538,2]
[348339409,1736454637953,-504.06794096,0.00020538,3]
[348339410,1736454637963,-500.0,0.00020538,3]
[348339411,1736454637972,-500.0,0.00020538,3]
[348339412,1736454637981,-500.0,0.00020538,3]
[348339413,1736454637990,-538.89284232,0.00020538,3]
[348339414,1736454638000,-500.0,0.00020538,3]
[348339415,1736454638009,-174.98318931,0.00020538,3]
[348339416,1736454638019,-500.0,0.00020538,3]
[348339417,1736454638028,-500.0,0.00020538,3]
[348339418,1736454638038,-500.0,0.00020538,3]
[348339419,1736454638050,-500.0,0.00020538,3]
[348339421,1736454638062,-505.01238238,0.00020538,3]
[348339423,1736454638073,-500.0,0.00020538,3]
[348339424,1736454638085,-500.0,0.00020538,3]
[348339425,1736454638097,-500.0,0.00020538,3]
[348339426,1736454638109,-1856.87,0.00020538,3]
[348339428,1736454638120,-470.97040225,0.00020538,3]
[348339431,1736454638131,-500.0,0.00020538,3]
[348339433,1736454638145,-500.0,0.00020538,3]
[348339434,1736454638155,-500.0,0.00020538,3]
[348339435,1736454638168,-173.57957309,0.00020538,3]
[348339436,1736454638179,-500.0,0.00020538,3]
[348339438,1736454638190,-500.0,0.00020538,3]